[Event "Titled Tuesday Blitz April 12 Late 2022"]
[White "O`Gorman, Tom"]
[Black "Babazada, Khazar"]
[WhiteFideId "2508249"]
[BlackFideId "13413554"]
[WhiteElo "2247"]
[BlackElo "2406"]
[Result "1-0"]
[Round "05"]
[TimeControl "180+1"]
[Date "2022.04.12"]
[WhiteClock "0:00:11"]
[BlackClock "0:00:04"]

1. Nf3 {[%clk 0:03:00]}  Nf6 {[%clk 0:02:59]} 2. e3 {[%clk 0:03:00]}  c5 {[%clk 0:02:59]} 3. c4 {[%clk 0:02:59]}  g6 {[%clk 0:02:59]} 4. d4 {[%clk 0:02:59]}  Bg7 {[%clk 0:02:59]} 5. Nc3 {[%clk 0:02:59]}  O-O {[%clk 0:02:59]} 6. Be2 {[%clk 0:02:59]}  cxd4 {[%clk 0:03:00]} 7. exd4 {[%clk 0:03:00]}  d5 {[%clk 0:02:59]} 8. O-O {[%clk 0:02:59]}  Nc6 {[%clk 0:02:59]} 9. h3 {[%clk 0:02:57]}  b6 {[%clk 0:02:57]} 10. Bg5 {[%clk 0:02:50]}  dxc4 {[%clk 0:02:51]} 11. Bxc4 {[%clk 0:02:47]}  Bb7 {[%clk 0:02:51]} 12. Re1 {[%clk 0:02:46]}  e6 {[%clk 0:02:40]} 13. a3 {[%clk 0:01:44]}  Ne7 {[%clk 0:02:36]} 14. Ne5 {[%clk 0:01:41]}  Rc8 {[%clk 0:02:35]} 15. Ba2 {[%clk 0:01:41]}  Nf5 {[%clk 0:02:18]} 16. d5 {[%clk 0:01:17]}  exd5 {[%clk 0:01:42]} 17. Bxf6 {[%clk 0:01:17]}  Bxf6 {[%clk 0:01:19]} 18. Nxd5 {[%clk 0:01:09]}  Bxd5 {[%clk 0:01:19]} 19. Qxd5 {[%clk 0:01:08]}  Qxd5 {[%clk 0:01:02]} 20. Bxd5 {[%clk 0:01:09]}  Bxe5 {[%clk 0:00:59]} 21. Rxe5 {[%clk 0:01:10]}  Rfd8 {[%clk 0:00:59]} 22. Be4 {[%clk 0:01:06]}  Nd6 {[%clk 0:00:55]} 23. Rd1 {[%clk 0:01:03]}  Kf8 {[%clk 0:00:37]} 24. Red5 {[%clk 0:00:53]}  Ke7 {[%clk 0:00:37]} 25. Bf3 {[%clk 0:00:52]}  Nc4 {[%clk 0:00:35]} 26. Re1+ {[%clk 0:00:40]}  Kf6 {[%clk 0:00:33]} 27. Rxd8 {[%clk 0:00:38]}  Rxd8 {[%clk 0:00:34]} 28. Re2 {[%clk 0:00:37]}  Rd1+ {[%clk 0:00:31]} 29. Kh2 {[%clk 0:00:37]}  Rd2 {[%clk 0:00:31]} 30. Rxd2 {[%clk 0:00:35]}  Nxd2 {[%clk 0:00:32]} 31. Bd5 {[%clk 0:00:35]}  b5 {[%clk 0:00:24]} 32. Kg3 {[%clk 0:00:34]}  g5 {[%clk 0:00:10]} 33. f4 {[%clk 0:00:29]}  h6 {[%clk 0:00:10]} 34. fxg5+ {[%clk 0:00:28]}  hxg5 {[%clk 0:00:11]} 35. Kf2 {[%clk 0:00:26]}  Nc4 {[%clk 0:00:07]} 36. Bxc4 {[%clk 0:00:25]}  bxc4 {[%clk 0:00:08]} 37. Ke3 {[%clk 0:00:22]}  Ke5 {[%clk 0:00:07]} 38. g3 {[%clk 0:00:14]}  Kd5 {[%clk 0:00:03]} 39. h4 {[%clk 0:00:14]}  gxh4 {[%clk 0:00:04]} 40. gxh4 {[%clk 0:00:15]}  Ke5 {[%clk 0:00:04]} 41. Kf3 {[%clk 0:00:15]}  Kf5 {[%clk 0:00:03]} 42. Kg3 {[%clk 0:00:15]}  a5 {[%clk 0:00:03]} 43. Kf3 {[%clk 0:00:14]}  a4 {[%clk 0:00:03]} 44. Kg3 {[%clk 0:00:15]}  Kg6 {[%clk 0:00:02]} 45. Kg4 {[%clk 0:00:15]}  f6 {[%clk 0:00:03]} 46. Kf4 {[%clk 0:00:14]}  Kh5 {[%clk 0:00:03]} 47. Kf5 {[%clk 0:00:09]}  Kxh4 {[%clk 0:00:03]} 48. Kxf6 {[%clk 0:00:10]}  Kg4 {[%clk 0:00:04]} 49. Ke5 {[%clk 0:00:10]}  Kf3 {[%clk 0:00:04]} 50. Kd4 {[%clk 0:00:10]}  Kf4 {[%clk 0:00:04]} 51. Kxc4 {[%clk 0:00:11]} 1-0


[Site "https://www.chess.com"]

[Event "Titled Tuesday Blitz April 12 Late 2022"]
[White "Ozdemir, Serhan Berat"]
[Black "Wang, Jalen"]
[WhiteFideId "6374611"]
[BlackFideId "2078058"]
[WhiteElo "1920"]
[BlackElo "2084"]
[Result "0-1"]
[Round "05"]
[TimeControl "180+1"]
[Date "2022.04.13"]
[WhiteClock "0:00:01"]
[BlackClock "0:01:03"]

1. e4 {[%clk 0:02:59]}  c5 {[%clk 0:02:57]} 2. Nf3 {[%clk 0:02:59]}  d6 {[%clk 0:02:57]} 3. d4 {[%clk 0:02:59]}  cxd4 {[%clk 0:02:58]} 4. Nxd4 {[%clk 0:03:00]}  Nf6 {[%clk 0:02:58]} 5. Nc3 {[%clk 0:03:00]}  a6 {[%clk 0:02:59]} 6. f3 {[%clk 0:03:00]}  e5 {[%clk 0:02:57]} 7. Nb3 {[%clk 0:03:01]}  Be6 {[%clk 0:02:57]} 8. Be3 {[%clk 0:03:01]}  Be7 {[%clk 0:02:58]} 9. Qd2 {[%clk 0:03:02]}  h5 {[%clk 0:02:58]} 10. Nd5 {[%clk 0:03:00]}  Bxd5 {[%clk 0:02:58]} 11. exd5 {[%clk 0:03:01]}  Nbd7 {[%clk 0:02:58]} 12. Na5 {[%clk 0:02:52]}  Qc7 {[%clk 0:02:57]} 13. c4 {[%clk 0:02:52]}  e4 {[%clk 0:02:54]} 14. Be2 {[%clk 0:02:19]}  exf3 {[%clk 0:02:48]} 15. Bxf3 {[%clk 0:02:20]}  Ne5 {[%clk 0:02:44]} 16. Be2 {[%clk 0:02:21]}  Nfg4 {[%clk 0:02:43]} 17. Bd4 {[%clk 0:02:13]}  b6 {[%clk 0:02:31]} 18. Nc6 {[%clk 0:02:00]}  Nxc6 {[%clk 0:02:30]} 19. dxc6 {[%clk 0:02:01]}  Ne5 {[%clk 0:02:22]} 20. O-O {[%clk 0:01:44]}  Qxc6 {[%clk 0:02:08]} 21. Bxe5 {[%clk 0:01:09]}  dxe5 {[%clk 0:02:06]} 22. Bf3 {[%clk 0:01:10]}  Qc5+ {[%clk 0:02:05]} 23. Kh1 {[%clk 0:01:10]}  Rd8 {[%clk 0:02:05]} 24. Bd5 {[%clk 0:01:11]}  Bf6 {[%clk 0:02:04]} 25. Qe2 {[%clk 0:00:58]}  Qe7 {[%clk 0:01:54]} 26. Rae1 {[%clk 0:00:56]}  g6 {[%clk 0:01:43]} 27. Rxf6 {[%clk 0:00:49]}  Qxf6 {[%clk 0:01:41]} 28. Rf1 {[%clk 0:00:50]}  Qg5 {[%clk 0:01:37]} 29. Bxf7+ {[%clk 0:00:31]}  Ke7 {[%clk 0:01:35]} 30. c5 {[%clk 0:00:19]}  Rhf8 {[%clk 0:01:16]} 31. Qc4 {[%clk 0:00:18]}  Rd4 {[%clk 0:01:15]} 32. Qe6+ {[%clk 0:00:17]}  Kd8 {[%clk 0:01:15]} 33. cxb6 {[%clk 0:00:13]}  Qe7 {[%clk 0:01:08]} 34. Qxe7+ {[%clk 0:00:04]}  Kxe7 {[%clk 0:01:07]} 35. Bc4 {[%clk 0:00:05]}  Rxc4 {[%clk 0:01:04]} 36. Re1 {[%clk 0:00:01]}  Rb4 {[%clk 0:01:02]} 37. Rxe5+ {[%clk 0:00:01]}  Kd6 {[%clk 0:01:03]} 38. Re1 {[%clk 0:00:01]}  Rxb2 {[%clk 0:01:03]} 0-1


[Site "https://www.chess.com"]

[Event "Titled Tuesday Blitz April 12 Late 2022"]
[White "Petrovic, Aleksa"]
[Black "De Souza, Cristiano Gomes"]
[WhiteFideId "967629"]
[BlackFideId "2151758"]
[WhiteElo "2198"]
[BlackElo "2068"]
[Result "0-1"]
[Round "05"]
[TimeControl "180+1"]
[Date "2022.04.13"]
[WhiteClock "0:00:03"]
[BlackClock "0:00:24"]

1. e4 {[%clk 0:03:00]}  c5 {[%clk 0:02:57]} 2. Nf3 {[%clk 0:02:57]}  d6 {[%clk 0:02:57]} 3. Bb5+ {[%clk 0:02:53]}  Bd7 {[%clk 0:02:56]} 4. Bxd7+ {[%clk 0:02:48]}  Qxd7 {[%clk 0:02:56]} 5. O-O {[%clk 0:02:47]}  Nc6 {[%clk 0:02:54]} 6. c4 {[%clk 0:02:44]}  e5 {[%clk 0:02:52]} 7. Nc3 {[%clk 0:02:42]}  Nf6 {[%clk 0:02:51]} 8. d3 {[%clk 0:02:41]}  h6 {[%clk 0:02:51]} 9. Nh4 {[%clk 0:02:36]}  g6 {[%clk 0:02:50]} 10. f4 {[%clk 0:02:32]}  exf4 {[%clk 0:02:49]} 11. Bxf4 {[%clk 0:02:32]}  g5 {[%clk 0:02:46]} 12. Be3 {[%clk 0:02:19]}  Ng4 {[%clk 0:02:41]} 13. Nf5 {[%clk 0:02:06]}  Nxe3 {[%clk 0:02:39]} 14. Nxe3 {[%clk 0:02:07]}  Bg7 {[%clk 0:02:37]} 15. Ncd5 {[%clk 0:02:03]}  Bd4 {[%clk 0:02:34]} 16. Kh1 {[%clk 0:01:59]}  O-O-O {[%clk 0:02:33]} 17. Nf5 {[%clk 0:01:51]}  Rdg8 {[%clk 0:02:32]} 18. Rb1 {[%clk 0:01:47]}  Rg6 {[%clk 0:02:28]} 19. b4 {[%clk 0:01:45]}  cxb4 {[%clk 0:02:27]} 20. Nxb4 {[%clk 0:01:35]}  Nxb4 {[%clk 0:02:09]} 21. Rxb4 {[%clk 0:01:36]}  Bc5 {[%clk 0:02:09]} 22. Rb5 {[%clk 0:01:27]}  a6 {[%clk 0:02:08]} 23. Rb3 {[%clk 0:01:26]}  Re6 {[%clk 0:02:04]} 24. d4 {[%clk 0:01:19]}  Ba7 {[%clk 0:02:03]} 25. Qd3 {[%clk 0:01:11]}  Rhe8 {[%clk 0:01:52]} 26. Ng3 {[%clk 0:00:30]}  h5 {[%clk 0:01:45]} 27. Rfb1 {[%clk 0:00:27]}  h4 {[%clk 0:01:40]} 28. Rxb7 {[%clk 0:00:27]}  Qxb7 {[%clk 0:01:38]} 29. Rxb7 {[%clk 0:00:28]}  Kxb7 {[%clk 0:01:38]} 30. Nf5 {[%clk 0:00:27]}  Kc7 {[%clk 0:01:32]} 31. e5 {[%clk 0:00:24]}  dxe5 {[%clk 0:01:31]} 32. d5 {[%clk 0:00:24]}  e4 {[%clk 0:01:23]} 33. Qa3 {[%clk 0:00:20]}  Rb6 {[%clk 0:01:20]} 34. g3 {[%clk 0:00:11]}  Rb1+ {[%clk 0:01:18]} 35. Kg2 {[%clk 0:00:11]}  e3 {[%clk 0:01:17]} 36. Qxa6 {[%clk 0:00:10]}  Kb8 {[%clk 0:01:16]} 37. Nd6 {[%clk 0:00:08]}  Rb6 {[%clk 0:01:05]} 38. Qa4 {[%clk 0:00:06]}  Re7 {[%clk 0:00:58]} 39. c5 {[%clk 0:00:06]}  Rb2+ {[%clk 0:00:56]} 40. Kh3 {[%clk 0:00:05]}  e2 {[%clk 0:00:55]} 41. Qc6 {[%clk 0:00:04]}  Bxc5 {[%clk 0:00:41]} 42. Qxc5 {[%clk 0:00:03]}  e1=Q {[%clk 0:00:38]} 43. Qc8+ {[%clk 0:00:03]}  Ka7 {[%clk 0:00:38]} 44. Qc5+ {[%clk 0:00:03]}  Rb6 {[%clk 0:00:36]} 45. Nb5+ {[%clk 0:00:02]}  Ka6 {[%clk 0:00:36]} 46. Nc7+ {[%clk 0:00:03]}  Rxc7 {[%clk 0:00:33]} 47. Qxc7 {[%clk 0:00:03]}  Qf1+ {[%clk 0:00:31]} 48. Kg4 {[%clk 0:00:03]}  Rb4+ {[%clk 0:00:30]} 49. Kh5 {[%clk 0:00:04]}  Qf3+ {[%clk 0:00:30]} 50. Kh6 {[%clk 0:00:04]}  Qxd5 {[%clk 0:00:28]} 51. Qc8+ {[%clk 0:00:04]}  Rb7 {[%clk 0:00:28]} 52. Qa8+ {[%clk 0:00:04]}  Kb6 {[%clk 0:00:27]} 53. Kg7 {[%clk 0:00:04]}  Qd4+ {[%clk 0:00:25]} 54. Kg8 {[%clk 0:00:03]}  f5 {[%clk 0:00:25]} 55. a4 {[%clk 0:00:03]}  Qg7# {[%clk 0:00:24]} 0-1


[Site "https://www.chess.com"]

[Event "Titled Tuesday Blitz April 12 Late 2022"]
[White "Przybylski, Wojciech"]
[Black "Manolache, Marius"]
[WhiteFideId "1117599"]
[BlackFideId "1201530"]
[WhiteElo "2133"]
[BlackElo "2364"]
[Result "1-0"]
[Round "05"]
[TimeControl "180+1"]
[Date "2022.04.13"]
[WhiteClock "0:00:07"]
[BlackClock "0:00:01"]

1. d4 {[%clk 0:03:00]}  Nf6 {[%clk 0:02:59]} 2. c4 {[%clk 0:02:55]}  Nc6 {[%clk 0:02:58]} 3. d5 {[%clk 0:02:53]}  Ne5 {[%clk 0:02:58]} 4. e3 {[%clk 0:02:52]}  e6 {[%clk 0:02:57]} 5. Nf3 {[%clk 0:02:51]}  Ng6 {[%clk 0:02:56]} 6. Nc3 {[%clk 0:02:50]}  Bb4 {[%clk 0:02:54]} 7. Bd2 {[%clk 0:02:45]}  exd5 {[%clk 0:02:46]} 8. Nxd5 {[%clk 0:02:43]}  Nxd5 {[%clk 0:02:45]} 9. cxd5 {[%clk 0:02:42]}  Qe7 {[%clk 0:02:24]} 10. Be2 {[%clk 0:02:40]}  O-O {[%clk 0:02:21]} 11. O-O {[%clk 0:02:38]}  a5 {[%clk 0:02:16]} 12. h3 {[%clk 0:02:32]}  c6 {[%clk 0:02:09]} 13. a3 {[%clk 0:02:25]}  Bxd2 {[%clk 0:01:59]} 14. Qxd2 {[%clk 0:02:24]}  d6 {[%clk 0:01:59]} 15. dxc6 {[%clk 0:02:09]}  bxc6 {[%clk 0:01:58]} 16. Rfd1 {[%clk 0:02:08]}  d5 {[%clk 0:01:45]} 17. Rac1 {[%clk 0:02:07]}  Bd7 {[%clk 0:01:45]} 18. Rc2 {[%clk 0:01:57]}  Rfb8 {[%clk 0:01:42]} 19. Rdc1 {[%clk 0:01:56]}  Rb6 {[%clk 0:01:40]} 20. Ne1 {[%clk 0:01:39]}  Ne5 {[%clk 0:01:35]} 21. f4 {[%clk 0:01:33]}  Ng6 {[%clk 0:01:28]} 22. Bf3 {[%clk 0:01:18]}  Nh4 {[%clk 0:01:25]} 23. Nd3 {[%clk 0:01:11]}  Nxf3+ {[%clk 0:01:10]} 24. gxf3 {[%clk 0:01:12]}  f6 {[%clk 0:01:10]} 25. Kh2 {[%clk 0:00:58]}  Qe6 {[%clk 0:01:00]} 26. Nf2 {[%clk 0:00:58]}  Rab8 {[%clk 0:00:58]} 27. Re1 {[%clk 0:00:52]}  h5 {[%clk 0:00:53]} 28. Re2 {[%clk 0:00:51]}  a4 {[%clk 0:00:48]} 29. Qd4 {[%clk 0:00:42]}  Rb3 {[%clk 0:00:43]} 30. Kg2 {[%clk 0:00:28]}  Qf5 {[%clk 0:00:28]} 31. h4 {[%clk 0:00:22]}  Re8 {[%clk 0:00:22]} 32. Qa7 {[%clk 0:00:20]}  Re7 {[%clk 0:00:18]} 33. Qc5 {[%clk 0:00:19]}  Kf7 {[%clk 0:00:17]} 34. Rc3 {[%clk 0:00:17]}  Rxc3 {[%clk 0:00:15]} 35. Qxc3 {[%clk 0:00:17]}  Qb1 {[%clk 0:00:11]} 36. Qc2 {[%clk 0:00:13]}  Qxc2 {[%clk 0:00:10]} 37. Rxc2 {[%clk 0:00:14]}  Be8 {[%clk 0:00:10]} 38. e4 {[%clk 0:00:13]}  Rb7 {[%clk 0:00:11]} 39. Rd2 {[%clk 0:00:12]}  Rb3 {[%clk 0:00:09]} 40. Nd1 {[%clk 0:00:12]}  dxe4 {[%clk 0:00:09]} 41. fxe4 {[%clk 0:00:12]}  c5 {[%clk 0:00:09]} 42. Nc3 {[%clk 0:00:12]}  Bc6 {[%clk 0:00:08]} 43. Kf2 {[%clk 0:00:12]}  f5 {[%clk 0:00:07]} 44. e5 {[%clk 0:00:11]}  Be4 {[%clk 0:00:04]} 45. Ke3 {[%clk 0:00:10]}  Bh1 {[%clk 0:00:04]} 46. Kd3 {[%clk 0:00:08]}  Bd5 {[%clk 0:00:01]} 47. Kc2 {[%clk 0:00:08]}  Be6 {[%clk 0:00:01]} 48. Rf2 {[%clk 0:00:07]} 1-0


[Site "https://www.chess.com"]

[Event "Titled Tuesday Blitz April 12 Late 2022"]
[White "Quintiliano Pinto, Renato R."]
[Black "Hnydiuk, Aleksander"]
[WhiteFideId "2117568"]
[BlackFideId "1109057"]
[WhiteElo "2439"]
[BlackElo "2374"]
[Result "1-0"]
[Round "05"]
[TimeControl "180+1"]
[Date "2022.04.12"]
[WhiteClock "0:00:56"]
[BlackClock "0:01:04"]

1. Nf3 {[%clk 0:02:56]}  Nf6 {[%clk 0:03:00]} 2. b3 {[%clk 0:02:56]}  g6 {[%clk 0:02:58]} 3. Bb2 {[%clk 0:02:56]}  Bg7 {[%clk 0:02:58]} 4. g3 {[%clk 0:02:57]}  O-O {[%clk 0:02:59]} 5. Bg2 {[%clk 0:02:57]}  d6 {[%clk 0:02:59]} 6. d4 {[%clk 0:02:55]}  e5 {[%clk 0:02:56]} 7. dxe5 {[%clk 0:02:55]}  dxe5 {[%clk 0:02:57]} 8. Qxd8 {[%clk 0:02:49]}  Rxd8 {[%clk 0:02:58]} 9. O-O {[%clk 0:02:48]}  Nc6 {[%clk 0:02:46]} 10. Nxe5 {[%clk 0:02:38]}  Nb4 {[%clk 0:02:46]} 11. Na3 {[%clk 0:02:32]}  Ng4 {[%clk 0:02:46]} 12. Nac4 {[%clk 0:02:11]}  Nxc2 {[%clk 0:02:35]} 13. Rad1 {[%clk 0:02:09]}  Re8 {[%clk 0:02:23]} 14. Nxg4 {[%clk 0:01:44]}  Bxg4 {[%clk 0:02:23]} 15. Bxg7 {[%clk 0:01:38]}  Kxg7 {[%clk 0:02:22]} 16. Bxb7 {[%clk 0:01:36]}  Bxe2 {[%clk 0:02:16]} 17. Bxa8 {[%clk 0:01:34]}  Rxa8 {[%clk 0:02:17]} 18. Rd7 {[%clk 0:01:31]}  Bxf1 {[%clk 0:02:14]} 19. Kxf1 {[%clk 0:01:32]}  Rc8 {[%clk 0:02:11]} 20. Ne5 {[%clk 0:01:26]}  Kf6 {[%clk 0:02:07]} 21. f4 {[%clk 0:01:23]}  Ke6 {[%clk 0:01:51]} 22. Rxf7 {[%clk 0:01:21]}  Ne3+ {[%clk 0:01:51]} 23. Ke2 {[%clk 0:01:17]}  Ng4 {[%clk 0:01:51]} 24. Rxh7 {[%clk 0:01:16]}  Nxe5 {[%clk 0:01:51]} 25. fxe5 {[%clk 0:01:17]}  Kxe5 {[%clk 0:01:51]} 26. Ke3 {[%clk 0:01:14]}  a5 {[%clk 0:01:49]} 27. Kd3 {[%clk 0:01:12]}  Kd5 {[%clk 0:01:41]} 28. Rg7 {[%clk 0:01:07]}  Rh8 {[%clk 0:01:33]} 29. h4 {[%clk 0:01:05]}  Rf8 {[%clk 0:01:18]} 30. Rxg6 {[%clk 0:01:04]}  Rf2 {[%clk 0:01:16]} 31. a4 {[%clk 0:01:03]}  Rf3+ {[%clk 0:01:15]} 32. Kc2 {[%clk 0:01:02]}  c5 {[%clk 0:01:08]} 33. Rg4 {[%clk 0:00:59]}  Rf2+ {[%clk 0:01:05]} 34. Kc3 {[%clk 0:00:59]}  Rf3+ {[%clk 0:01:05]} 35. Kb2 {[%clk 0:00:59]}  Rf2+ {[%clk 0:01:05]} 36. Ka3 {[%clk 0:01:00]}  Rf3 {[%clk 0:01:05]} 37. h5 {[%clk 0:00:59]}  c4 {[%clk 0:01:04]} 38. Rxc4 {[%clk 0:00:57]}  Rxg3 {[%clk 0:01:04]} 39. Rh4 {[%clk 0:00:56]} 1-0


[Site "https://www.chess.com"]

[Event "Titled Tuesday Blitz April 12 Late 2022"]
[White "Rangel, Daniel"]
[Black "Lewtak, Damian"]
[WhiteFideId "2124475"]
[BlackFideId "1141724"]
[WhiteElo "2225"]
[BlackElo "2362"]
[Result "0-1"]
[Round "05"]
[TimeControl "180+1"]
[Date "2022.04.13"]
[WhiteClock "0:00:02"]
[BlackClock "0:00:39"]

1. b3 {[%clk 0:02:58]}  e5 {[%clk 0:02:57]} 2. Bb2 {[%clk 0:02:59]}  f6 {[%clk 0:02:54]} 3. g3 {[%clk 0:02:58]}  d5 {[%clk 0:02:54]} 4. Bg2 {[%clk 0:02:59]}  c5 {[%clk 0:02:54]} 5. Nf3 {[%clk 0:02:58]}  Nc6 {[%clk 0:02:54]} 6. O-O {[%clk 0:02:58]}  Bd6 {[%clk 0:02:54]} 7. c4 {[%clk 0:02:55]}  d4 {[%clk 0:02:53]} 8. e3 {[%clk 0:02:55]}  Nge7 {[%clk 0:02:53]} 9. a3 {[%clk 0:02:52]}  a5 {[%clk 0:02:53]} 10. exd4 {[%clk 0:02:41]}  exd4 {[%clk 0:02:53]} 11. d3 {[%clk 0:02:39]}  Bf5 {[%clk 0:02:50]} 12. Nh4 {[%clk 0:02:37]}  Be6 {[%clk 0:02:43]} 13. Re1 {[%clk 0:02:36]}  Qd7 {[%clk 0:02:41]} 14. Qe2 {[%clk 0:02:34]}  Bg4 {[%clk 0:02:37]} 15. f3 {[%clk 0:02:11]}  Bh5 {[%clk 0:02:33]} 16. Nd2 {[%clk 0:02:06]}  O-O {[%clk 0:02:23]} 17. Ne4 {[%clk 0:02:00]}  g5 {[%clk 0:02:15]} 18. g4 {[%clk 0:01:54]}  Bf7 {[%clk 0:02:11]} 19. Nxd6 {[%clk 0:01:45]}  Qxd6 {[%clk 0:02:10]} 20. Nf5 {[%clk 0:01:44]}  Nxf5 {[%clk 0:02:10]} 21. gxf5 {[%clk 0:01:45]}  Rfe8 {[%clk 0:01:58]} 22. Qf2 {[%clk 0:01:45]}  Qf4 {[%clk 0:01:56]} 23. Bh3 {[%clk 0:01:32]}  Ne5 {[%clk 0:01:56]} 24. Rxe5 {[%clk 0:00:53]}  Qxe5 {[%clk 0:01:55]} 25. Bc1 {[%clk 0:00:43]}  Qe1+ {[%clk 0:01:49]} 26. Bf1 {[%clk 0:00:37]}  Qxf2+ {[%clk 0:01:32]} 27. Kxf2 {[%clk 0:00:38]}  h5 {[%clk 0:01:29]} 28. h3 {[%clk 0:00:31]}  Re7 {[%clk 0:01:26]} 29. Bd2 {[%clk 0:00:30]}  Be8 {[%clk 0:01:26]} 30. h4 {[%clk 0:00:25]}  gxh4 {[%clk 0:01:21]} 31. Bh3 {[%clk 0:00:25]}  Bd7 {[%clk 0:01:15]} 32. Rh1 {[%clk 0:00:21]}  Rae8 {[%clk 0:01:12]} 33. Bf1 {[%clk 0:00:18]}  Bxf5 {[%clk 0:01:12]} 34. Rxh4 {[%clk 0:00:18]}  Bg6 {[%clk 0:01:12]} 35. Bxa5 {[%clk 0:00:18]}  Ra8 {[%clk 0:01:10]} 36. b4 {[%clk 0:00:18]}  Re3 {[%clk 0:01:01]} 37. bxc5 {[%clk 0:00:13]}  Rxa5 {[%clk 0:01:00]} 38. Rxd4 {[%clk 0:00:13]}  Re8 {[%clk 0:00:52]} 39. Rd5 {[%clk 0:00:12]}  Bf7 {[%clk 0:00:51]} 40. Rf5 {[%clk 0:00:12]}  Kg7 {[%clk 0:00:51]} 41. d4 {[%clk 0:00:12]}  Rxa3 {[%clk 0:00:46]} 42. d5 {[%clk 0:00:11]}  Ra2+ {[%clk 0:00:43]} 43. Kg3 {[%clk 0:00:10]}  Re1 {[%clk 0:00:43]} 44. Bd3 {[%clk 0:00:08]}  Bg6 {[%clk 0:00:44]} 45. d6 {[%clk 0:00:01]}  Bxf5 {[%clk 0:00:39]} 46. Bxf5 {[%clk 0:00:02]}  Rd2 {[%clk 0:00:39]} 47. d7 {[%clk 0:00:02]}  Red1 {[%clk 0:00:39]} 48. Kf4 {[%clk 0:00:02]}  Rxd7 {[%clk 0:00:39]} 0-1


[Site "https://www.chess.com"]

[Event "Titled Tuesday Blitz April 12 Late 2022"]
[White "Riehle, Marco"]
[Black "Urazayev, Arystanbek"]
[WhiteFideId "12904392"]
[BlackFideId "13709810"]
[WhiteElo "2462"]
[BlackElo "2422"]
[Result "1-0"]
[Round "05"]
[TimeControl "180+1"]
[Date "2022.04.13"]
[WhiteClock "0:00:25"]
[BlackClock "0:01:04"]

1. e4 {[%clk 0:02:58]}  c5 {[%clk 0:02:59]} 2. a3 {[%clk 0:02:57]}  g6 {[%clk 0:02:51]} 3. h4 {[%clk 0:02:56]}  Nf6 {[%clk 0:02:50]} 4. e5 {[%clk 0:02:56]}  Nd5 {[%clk 0:02:51]} 5. c4 {[%clk 0:02:55]}  Nc7 {[%clk 0:02:48]} 6. h5 {[%clk 0:02:54]}  Bg7 {[%clk 0:02:48]} 7. f4 {[%clk 0:02:45]}  h6 {[%clk 0:02:42]} 8. hxg6 {[%clk 0:02:41]}  fxg6 {[%clk 0:02:43]} 9. Bd3 {[%clk 0:02:42]}  O-O {[%clk 0:02:42]} 10. Ne2 {[%clk 0:02:34]}  d6 {[%clk 0:02:40]} 11. Bxg6 {[%clk 0:02:28]}  dxe5 {[%clk 0:02:39]} 12. d3 {[%clk 0:02:28]}  Qd6 {[%clk 0:02:36]} 13. Be4 {[%clk 0:02:21]}  exf4 {[%clk 0:02:37]} 14. Nbc3 {[%clk 0:02:19]}  Nc6 {[%clk 0:02:36]} 15. Bd2 {[%clk 0:01:58]}  Bg4 {[%clk 0:02:36]} 16. Qa4 {[%clk 0:01:56]}  Nd4 {[%clk 0:02:31]} 17. Nxd4 {[%clk 0:01:53]}  cxd4 {[%clk 0:02:31]} 18. Ne2 {[%clk 0:01:50]}  Ne6 {[%clk 0:02:25]} 19. Bd5 {[%clk 0:01:31]}  Kh8 {[%clk 0:02:24]} 20. Kf2 {[%clk 0:01:24]}  Nc5 {[%clk 0:02:16]} 21. Qc2 {[%clk 0:01:22]}  Qg6 {[%clk 0:02:12]} 22. Nc1 {[%clk 0:01:19]}  f3 {[%clk 0:02:11]} 23. g3 {[%clk 0:01:19]}  e6 {[%clk 0:02:11]} 24. Be4 {[%clk 0:01:18]}  Nxe4+ {[%clk 0:02:06]} 25. dxe4 {[%clk 0:01:19]}  Rac8 {[%clk 0:02:00]} 26. Nd3 {[%clk 0:01:15]}  Qxe4 {[%clk 0:01:55]} 27. Rae1 {[%clk 0:00:53]}  Qg6 {[%clk 0:01:48]} 28. Qb3 {[%clk 0:00:52]}  e5 {[%clk 0:01:46]} 29. Nxe5 {[%clk 0:00:50]}  Qf5 {[%clk 0:01:27]} 30. Bxh6 {[%clk 0:00:46]}  Kg8 {[%clk 0:01:12]} 31. Bxg7 {[%clk 0:00:42]}  Kxg7 {[%clk 0:01:13]} 32. Qxb7+ {[%clk 0:00:41]}  Rf7 {[%clk 0:01:08]} 33. Qxf7+ {[%clk 0:00:39]}  Qxf7 {[%clk 0:01:08]} 34. Nxf7 {[%clk 0:00:40]}  Kxf7 {[%clk 0:01:08]} 35. Re4 {[%clk 0:00:39]}  Be6 {[%clk 0:01:08]} 36. Rxd4 {[%clk 0:00:35]}  a5 {[%clk 0:01:08]} 37. Kxf3 {[%clk 0:00:32]}  Rb8 {[%clk 0:01:07]} 38. Rh2 {[%clk 0:00:30]}  Rb3+ {[%clk 0:01:06]} 39. Kf4 {[%clk 0:00:30]}  a4 {[%clk 0:01:06]} 40. g4 {[%clk 0:00:30]}  Kg6 {[%clk 0:01:06]} 41. Rd6 {[%clk 0:00:28]}  Kf7 {[%clk 0:01:06]} 42. Rh7+ {[%clk 0:00:27]}  Kg8 {[%clk 0:01:06]} 43. Re7 {[%clk 0:00:26]}  Bxc4 {[%clk 0:01:04]} 44. Rd8# {[%clk 0:00:25]} 1-0


[Site "https://www.chess.com"]

[Event "Titled Tuesday Blitz April 12 Late 2022"]
[White "Savchenko, Boris"]
[Black "Papp, Levente"]
[WhiteFideId "4147332"]
[BlackFideId "751243"]
[WhiteElo "2557"]
[BlackElo "2308"]
[Result "1-0"]
[Round "05"]
[TimeControl "180+1"]
[Date "2022.04.12"]
[WhiteClock "0:00:24"]
[BlackClock "0:00:10"]

1. e4 {[%clk 0:02:54]}  e6 {[%clk 0:02:59]} 2. d3 {[%clk 0:02:53]}  c5 {[%clk 0:02:57]} 3. Nd2 {[%clk 0:02:53]}  Nc6 {[%clk 0:02:57]} 4. f4 {[%clk 0:02:51]}  d5 {[%clk 0:02:54]} 5. Ngf3 {[%clk 0:02:50]}  Qc7 {[%clk 0:02:51]} 6. g3 {[%clk 0:02:49]}  Nf6 {[%clk 0:02:48]} 7. Bg2 {[%clk 0:02:49]}  b6 {[%clk 0:02:45]} 8. O-O {[%clk 0:02:49]}  Bb7 {[%clk 0:02:45]} 9. e5 {[%clk 0:02:45]}  Nd7 {[%clk 0:02:45]} 10. a3 {[%clk 0:02:42]}  Be7 {[%clk 0:02:27]} 11. c4 {[%clk 0:02:40]}  O-O-O {[%clk 0:02:05]} 12. cxd5 {[%clk 0:02:39]}  exd5 {[%clk 0:02:06]} 13. b4 {[%clk 0:02:34]}  cxb4 {[%clk 0:01:55]} 14. axb4 {[%clk 0:02:35]}  Bxb4 {[%clk 0:01:53]} 15. Ba3 {[%clk 0:02:32]}  Bxa3 {[%clk 0:01:45]} 16. Rxa3 {[%clk 0:02:33]}  Kb8 {[%clk 0:01:45]} 17. Qa1 {[%clk 0:02:32]}  b5 {[%clk 0:01:37]} 18. Rb1 {[%clk 0:02:32]}  b4 {[%clk 0:01:30]} 19. Ra4 {[%clk 0:02:28]}  Nc5 {[%clk 0:01:23]} 20. Raxb4 {[%clk 0:02:23]}  Nxb4 {[%clk 0:01:23]} 21. Rxb4 {[%clk 0:02:24]}  Nxd3 {[%clk 0:01:22]} 22. Rb5 {[%clk 0:02:22]}  Rc8 {[%clk 0:01:11]} 23. Bf1 {[%clk 0:02:21]}  Nc5 {[%clk 0:00:46]} 24. Nd4 {[%clk 0:02:09]}  Ne4 {[%clk 0:00:41]} 25. N2b3 {[%clk 0:02:03]}  Ka8 {[%clk 0:00:34]} 26. Ra5 {[%clk 0:01:59]}  Qb6 {[%clk 0:00:34]} 27. Rb5 {[%clk 0:01:53]}  Qc7 {[%clk 0:00:34]} 28. Kg2 {[%clk 0:01:38]}  Qc3 {[%clk 0:00:31]} 29. Qa2 {[%clk 0:01:35]}  Nc5 {[%clk 0:00:24]} 30. Ra5 {[%clk 0:00:50]}  Nxb3 {[%clk 0:00:23]} 31. Rxa7+ {[%clk 0:00:50]}  Kb8 {[%clk 0:00:24]} 32. Rxb7+ {[%clk 0:00:50]}  Kxb7 {[%clk 0:00:23]} 33. Qa6+ {[%clk 0:00:51]}  Kb8 {[%clk 0:00:20]} 34. Qb6+ {[%clk 0:00:50]}  Ka8 {[%clk 0:00:20]} 35. Ba6 {[%clk 0:00:29]}  Na5 {[%clk 0:00:17]} 36. Nb5 {[%clk 0:00:28]}  Qc2+ {[%clk 0:00:15]} 37. Kh3 {[%clk 0:00:28]}  Qf5+ {[%clk 0:00:16]} 38. g4 {[%clk 0:00:25]}  Qd3+ {[%clk 0:00:16]} 39. Kh4 {[%clk 0:00:25]}  g5+ {[%clk 0:00:14]} 40. fxg5 {[%clk 0:00:25]}  Qc2 {[%clk 0:00:10]} 41. Qa7# {[%clk 0:00:24]} 1-0


[Site "https://www.chess.com"]